fUST/lending_fUST_20240721
["ID","MTS","AMOUNT","RATE_DAILY","PERIOD"]
[332817055,1721547284656,-547.4,0.00013972,2]
[332817056,1721547284682,-500.0,0.00013972,2]
[332817057,1721547284708,-3300.42,0.00013972,2]
[332817058,1721547284734,-500.0,0.00013972,2]
[332817059,1721547284763,-500.0,0.00013972,2]
[332817060,1721547284789,-500.0,0.00013972,2]
[332817061,1721547284815,-500.0,0.00013972,2]
[332817062,1721547284841,-849.51366,0.00013972,2]
[332817063,1721547284867,-849.51366,0.00013972,2]
[332817064,1721547284899,-500.0,0.00013972,2]
[332817065,1721547284926,-500.0,0.00013972,2]
[332817066,1721547284953,-849.51366,0.00013972,2]
[332817067,1721547284979,-849.51366,0.00013972,2]
[332817068,1721547285006,-151.0,0.00013972,2]
[332817069,1721547285031,-500.0,0.00013972,2]
[332817070,1721547285056,-151.0,0.00013972,2]
[332817071,1721547285080,-896.9,0.00013972,2]
[332817072,1721547285104,-500.0,0.00013972,2]
[332817073,1721547285128,-328.06,0.00013972,2]
[332817074,1721547285152,-500.0,0.00013972,2]
[332817075,1721547285178,-342.52461219,0.00013972,2]
[332817076,1721547285202,-438.00650596,0.00013972,2]
[332817077,1721547285225,-500.0,0.00013972,2]
[332817078,1721547285249,-500.0,0.00013972,2]
[332817079,1721547285271,-151.0,0.00013972,2]
[332817080,1721547285295,-151.0,0.00013972,2]
[332817081,1721547285318,-500.0,0.00013972,2]
[332817082,1721547285340,-500.0,0.00013972,2]
[332817083,1721547285363,-500.0,0.00013972,2]
[332817084,1721547285386,-1194.62,0.00013972,2]
[332817085,1721547285410,-2331.01,0.00013972,2]
[332817086,1721547285434,-500.0,0.00013972,2]
[332817087,1721547285458,-548.33,0.00013972,2]
[332817088,1721547285481,-500.0,0.00013972,2]
[332817089,1721547285504,-500.0,0.00013972,2]
[332817090,1721547285527,-500.0,0.00013972,2]
[332817091,1721547285549,-651.18,0.00013972,2]
[332817092,1721547285574,-500.0,0.00013972,2]
[332817093,1721547285603,-500.0,0.00013972,2]
[332817094,1721547285632,-151.0,0.00013972,2]
[332817095,1721547285662,-890.37,0.00013972,2]
[332817096,1721547285686,-151.0,0.00013972,2]
[332817097,1721547285714,-500.0,0.00013972,2]
[332817098,1721547285741,-500.0,0.00013972,2]
[332817099,1721547285771,-500.0,0.00013972,2]
[332817100,1721547285799,-532.06029466,0.00013972,2]
[332817101,1721547285830,-567.48,0.00013972,2]
[332817102,1721547285858,-593.52,0.00013972,2]
[332817103,1721547285886,-500.0,0.00013972,2]
[332817104,1721547285916,-500.0,0.00013972,2]
[332817105,1721547285944,-500.0,0.00013972,2]
[332817106,1721547285973,-1132.65,0.00013972,2]
[332817107,1721547286003,-532.07,0.00013972,2]
[332817108,1721547286032,-327.983511,0.00013972,2]
[332817109,1721547286058,-327.983511,0.00013972,2]
[332817110,1721547286087,-151.0,0.00013972,2]
[332817111,1721547286115,-500.0,0.00013972,2]
[332817112,1721547286144,-327.983511,0.00013972,2]
[332817113,1721547286173,-327.983511,0.00013972,2]
[332817114,1721547286201,-546.73,0.00013972,2]
[332817115,1721547286231,-151.0,0.00013972,2]
[332817116,1721547286261,-151.0,0.00013972,2]
[332817117,1721547286289,-1362.57,0.00013972,2]
[332817118,1721547286314,-481.79622285,0.00013972,2]
[332817119,1721547286339,-500.0,0.00013972,2]
[332817120,1721547286366,-151.0,0.00013972,2]
[332817121,1721547286395,-500.0,0.00013972,2]
[332817122,1721547286425,-500.0,0.00013972,2]
[332817123,1721547286452,-151.0,0.00013972,2]
[332817124,1721547286481,-151.0,0.00013972,2]
[332817125,1721547286509,-609.34,0.00013972,2]
[332817126,1721547286537,-517.40359857,0.00013972,2]
[332817127,1721547286563,-151.0,0.00013972,2]
[332817128,1721547286589,-151.0,0.00013972,2]
[332817129,1721547286615,-598.88,0.00013972,2]
[332817130,1721547286642,-2618.355398,0.00013972,2]
[332817131,1721547286670,-2618.355398,0.00013972,2]
[332817132,1721547286695,-500.0,0.00013972,2]
[332817133,1721547286722,-151.0,0.00013972,2]
[332817134,1721547286748,-151.0,0.00013972,2]
[332817135,1721547286775,-2618.355398,0.00013972,2]
[332817136,1721547286803,-2618.355398,0.00013972,2]
[332817137,1721547286830,-500.0,0.00013972,2]
[332817138,1721547286857,-726.32,0.00013972,2]
[332817139,1721547286886,-500.0,0.00013972,2]
[332817140,1721547286913,-587.53,0.00013972,2]
[332817141,1721547286939,-508.04,0.00013972,2]
[332817142,1721547286966,-500.0,0.00013972,2]
[332817143,1721547286992,-151.0,0.00013972,2]
[332817144,1721547287018,-151.0,0.00013972,2]
[332817145,1721547287044,-786.77,0.00013972,2]
[332817146,1721547287070,-500.0,0.00013972,2]
[332817147,1721547287097,-151.0,0.00013972,2]
[332817148,1721547287123,-151.0,0.00013972,2]
[332817149,1721547287149,-500.0,0.00013972,2]
[332817150,1721547287175,-500.0,0.00013972,2]
[332817151,1721547287207,-500.0,0.00013972,2]
[332817152,1721547287233,-500.0,0.00013972,2]
[332817153,1721547287264,-500.0,0.00013972,2]
[332817154,1721547287291,-500.0,0.00013972,2]
[332817155,1721547287320,-541.73752754,0.00013972,2]
[332817156,1721547287351,-999.05,0.00013972,2]
[332817157,1721547287381,-1699.49,0.00013972,2]
[332817158,1721547287410,-553.37,0.00013972,2]
[332817159,1721547287441,-500.0,0.00013972,2]
[332817160,1721547287468,-500.0,0.00013972,2]
[332817161,1721547287495,-502.02012757,0.00013972,2]
[332817162,1721547287524,-500.0,0.00013972,2]
[332817163,1721547287552,-1004.52,0.00013972,2]
[332817164,1721547287580,-572.25,0.00013972,2]
[332817165,1721547287609,-500.0,0.00013972,2]
[332817166,1721547287636,-1319.08,0.00013972,2]
[332817167,1721547287664,-341.5981426,0.00013972,2]
[332817168,1721547287691,-500.0,0.00013972,2]
[332817169,1721547287718,-500.0,0.00013972,2]
[332817170,1721547287745,-628.44,0.00013972,2]
[332817171,1721547287772,-1194.74,0.00013972,2]
[332817172,1721547287799,-500.0,0.00013972,2]
[332817173,1721547287826,-810.64,0.00013972,2]
[332817174,1721547287853,-500.0,0.00013972,2]
[332817175,1721547287880,-165.22509,0.00013972,2]
[332817176,1721547287911,-165.22509,0.00013972,2]
[332817177,1721547287939,-500.0,0.00013972,2]
[332817178,1721547287968,-946.93,0.00013972,2]
[332817179,1721547287996,-500.0,0.00013972,2]
[332817180,1721547288023,-165.22509,0.00013972,2]
[332817181,1721547288050,-165.22509,0.00013972,2]
[332817182,1721547288078,-304.87295067,0.00013972,2]
[332817183,1721547288105,-601.49,0.00013972,2]
[332817184,1721547288133,-503.71144622,0.00013972,2]
[332817185,1721547288162,-2006.22,0.00013972,2]
[332817186,1721547288189,-500.0,0.00013972,2]
[332817187,1721547288217,-151.0,0.00013972,2]
[332817188,1721547288244,-151.0,0.00013972,2]
[332817189,1721547288271,-500.0,0.00013972,2]
[332817190,1721547288298,-151.0,0.00013972,2]
[332817191,1721547288324,-500.0,0.00013972,2]
[332817192,1721547288351,-272.123538,0.00013972,2]
[332817193,1721547288378,-500.0,0.00013972,2]
[332817194,1721547288404,-844.88,0.00013972,2]
[332817195,1721547288431,-500.0,0.00013972,2]
[332817196,1721547288458,-1041.28,0.00013972,2]
[332817197,1721547288486,-160.32548449,0.00013972,2]
[332817198,1721547288900,-2144.59,0.00013972,2]
[332817199,1721547288925,-1517.59,0.00013972,2]
[332817200,1721547288950,-1030.72,0.00013972,2]
[332817201,1721547288976,-500.0,0.00013972,2]
[332817202,1721547289001,-560.78,0.00013972,2]
[332817203,1721547289025,-500.0,0.00013972,2]
[332817204,1721547289050,-391.20525111,0.00013972,2]
[332817247,1721548157153,-8408.08344272,8.11e-05,2]
[332817248,1721548157174,-194.50665728,8.205e-05,2]
[332817300,1721548232199,-818.684,7.25e-05,2]
[332817366,1721548245353,-2465.8957363,7.25e-05,2]
[332817367,1721548245363,-250.0,7.296e-05,2]
[332817368,1721548245372,-250.0,7.316e-05,2]
[332817369,1721548245382,-250.0,7.336e-05,2]
[332817370,1721548245391,-250.0,7.356e-05,2]
[332817371,1721548245401,-250.0,7.376e-05,2]
[332817372,1721548245411,-250.0,7.396e-05,2]
[332817373,1721548245420,-250.0,7.416e-05,2]
[332817374,1721548245430,-250.0,7.436e-05,2]
[332817375,1721548245439,-250.0,7.456e-05,2]
[332817376,1721548245449,-250.0,7.476e-05,2]
[332817377,1721548245458,-250.0,7.496e-05,2]
[332817378,1721548245467,-250.0,7.516e-05,2]
[332817379,1721548245477,-250.0,7.536e-05,2]
[332817380,1721548245486,-250.0,7.556e-05,2]
[332817381,1721548245496,-250.0,7.576e-05,2]
[332817382,1721548245505,-250.0,7.596e-05,2]
[332817383,1721548245515,-250.0,7.616e-05,2]
[332817384,1721548245525,-250.0,7.636e-05,2]
[332817385,1721548245534,-250.0,7.656e-05,2]
[332817386,1721548245544,-250.0,7.676e-05,2]
[332817387,1721548245553,-450.54995892,8.123e-05,2]
[332817388,1721548245563,-450.54995892,8.205e-05,2]
[332817389,1721548245572,-155.02095383,8.205e-05,2]
[332817390,1721548245582,-300.0,8.205e-05,2]
[332817391,1721548245592,-166.82486395,8.205e-05,2]
[332817392,1721548245602,-154.80649189,8.205e-05,2]
[332817393,1721548245611,-154.80649189,8.205e-05,2]
[332817394,1721548245621,-3781.31705909,8.205e-05,2]
[332817395,1721548245632,-1625.30319851,8.205e-05,2]
[332817396,1721548245642,-294.65667472,8.205e-05,2]
[332817397,1721548245652,-9566.23980276,8.205e-05,2]
[332817398,1721548246080,-9874.33571651,8.205e-05,2]
[332817399,1721548246090,-2106.31551891,8.205e-05,2]
[332817400,1721548246099,-206.14035315,8.205e-05,2]
[332817401,1721548246108,-300.0,8.206e-05,2]
[332817402,1721548246117,-24900.0,8.207e-05,2]
[332817403,1721548246126,-1288.4990532,8.245e-05,2]
[332817404,1721548246135,-8408.08344272,8.275e-05,2]
[332817405,1721548246145,-9489.1323376,8.375e-05,2]
[332817406,1721548246154,-563.8269838,8.56e-05,2]
[332817407,1721548246163,-420.0,9.026e-05,2]
[332817408,1721548246172,-420.0,9.027e-05,2]
[332817409,1721548246182,-17881.06779372,9.7e-05,2]
[332817410,1721548246191,-191.37744587,9.8e-05,2]
[332817411,1721548246201,-587.0,9.928e-05,2]
[332817412,1721548246211,-587.0,9.929e-05,2]
[332817413,1721548246220,-178.70954864,9.945e-05,2]
[332817414,1721548246232,-375.56569674,9.999e-05,2]
[332817415,1721548246242,-493.63662636,9.999e-05,2]
[332817416,1721548246251,-155.70429949,9.999e-05,2]
[332817417,1721548246261,-172.56150363,9.999e-05,2]
[332817418,1721548246271,-154.77557542,9.999e-05,2]
[332817424,1721548246491,-887.31675178,9.999e-05,2]
[332817425,1721548246501,-778.7273512,9.999e-05,2]
[332817426,1721548246511,-600.13398143,9.999e-05,2]
[332817427,1721548246521,-542.43428844,9.999e-05,2]
[332817428,1721548246530,-453.01956779,9.999e-05,2]
[332817429,1721548246540,-196.61907768,9.999e-05,2]
[332817430,1721548246550,-154.80649189,9.999e-05,2]
[332817431,1721548246559,-567.88989652,9.999e-05,2]
[332817432,1721548246571,-154.87490878,9.999e-05,2]
[332817433,1721548246580,-392.37099697,9.999e-05,2]
[332817434,1721548246590,-518.96291688,9.999e-05,2]
[332817435,1721548246599,-805.24831132,9.999e-05,2]
[332817436,1721548246609,-154.80649189,9.999e-05,2]
[332817437,1721548246618,-175.59147886,9.999e-05,2]
[332817438,1721548246630,-154.80649189,9.999e-05,2]
[332817439,1721548246640,-154.80649189,9.999e-05,2]
[332817440,1721548246650,-179.80534882,9.999e-05,2]
[332817441,1721548246659,-175.44767719,9.999e-05,2]
[332817442,1721548246669,-994.2327366,9.999e-05,2]
[332817443,1721548246678,-726.64238482,9.999e-05,2]
[332817444,1721548246688,-304.12633314,9.999e-05,2]
[332817445,1721548246699,-154.80649189,9.999e-05,2]
[332817446,1721548246708,-518.96291688,9.999e-05,2]
[332817447,1721548246717,-206.16068454,9.999e-05,2]
[332817448,1721548246727,-159.63727421,9.999e-05,2]
[332817449,1721548246738,-196.23272376,9.999e-05,2]
[332817450,1721548246747,-154.80649189,9.999e-05,2]
[332817451,1721548246756,-154.80649189,9.999e-05,2]
[332817452,1721548246767,-287.42676554,0.0001,2]
[332817453,1721548246777,-823.0,0.00010922,2]
[332817454,1721548246787,-201.8,0.00010959,2]
[332817455,1721548246796,-168.17,0.00010959,2]
[332817456,1721548246806,-840.85,0.00010959,2]
[332817457,1721548246819,-870.0,0.00012014,2]
[332817458,1721548246829,-871.29651902,0.00013598,2]
[332817459,1721548246839,-150.5,0.00013658,7]
[332817460,1721548246848,-150.5,0.00013668,7]
[332817461,1721548246858,-150.5,0.00013678,7]
[332817462,1721548246867,-346056.593006,0.00013688,2]
[332817463,1721548246876,-500.0,0.00013698,2]
[332817464,1721548246886,-500.0,0.00013698,2]
[332817465,1721548246896,-500.0,0.00013698,2]
[332817466,1721548246905,-500.0,0.00013698,2]
[332817467,1721548246915,-500.0,0.00013698,2]
[332817468,1721548246925,-500.0,0.00013698,2]
[332817469,1721548246936,-500.0,0.00013698,2]
[332817470,1721548246944,-208.68107606,0.00013698,2]
[332817471,1721548246953,-500.0,0.00013698,2]
[332817472,1721548246964,-500.0,0.00013698,2]
[332817473,1721548246973,-500.0,0.00013698,2]
[332817474,1721548246982,-500.0,0.00013698,2]
[332817475,1721548246991,-500.0,0.00013698,2]
[332817476,1721548247001,-500.0,0.00013698,2]
[332817477,1721548247010,-273.53253815,0.00013698,2]
[332817478,1721548247019,-500.0,0.00013698,2]
[332817479,1721548247029,-500.0,0.00013698,2]
[332817480,1721548247039,-500.0,0.00013698,2]
[332817481,1721548247049,-285.56317696,0.00013698,2]
[332817482,1721548247058,-500.0,0.00013698,2]
[332817483,1721548247068,-500.0,0.00013698,2]
[332817484,1721548247078,-500.0,0.00013698,2]
[332817485,1721548247087,-211.14067823,0.00013698,2]
[332817486,1721548247096,-500.0,0.00013698,2]
[332817487,1721548247105,-500.0,0.00013698,2]
[332817488,1721548247115,-500.0,0.00013698,2]
[332817489,1721548247125,-232.58593263,0.00013698,2]
[332817490,1721548247135,-500.0,0.00013698,2]
[332817491,1721548247144,-500.0,0.00013698,2]
[332817492,1721548247154,-500.0,0.00013698,2]
[332817493,1721548247163,-500.0,0.00013698,2]
[332817494,1721548247173,-500.0,0.00013698,2]
[332817495,1721548247183,-500.0,0.00013698,2]
[332817496,1721548247192,-500.0,0.00013698,2]
[332817497,1721548247204,-500.0,0.00013698,2]
[332817498,1721548247215,-500.0,0.00013698,2]
[332817499,1721548247224,-500.0,0.00013698,2]
[332817500,1721548247236,-500.0,0.00013698,2]
[332817501,1721548247246,-500.0,0.00013698,2]
[332817502,1721548247255,-500.0,0.00013698,2]
[332817503,1721548247264,-500.0,0.00013698,2]
[332817504,1721548247274,-500.0,0.00013698,2]
[332817505,1721548247283,-500.0,0.00013698,2]
[332817506,1721548247293,-500.0,0.00013698,2]
[332817507,1721548247303,-500.0,0.00013698,2]
[332817508,1721548247313,-500.0,0.00013698,2]
[332817509,1721548247322,-500.0,0.00013698,2]
[332817510,1721548247331,-622.70034335,0.00013698,2]
[332817511,1721548247341,-500.0,0.00013698,2]
[332817512,1721548247351,-500.0,0.00013698,2]
[332817513,1721548247361,-500.0,0.00013698,2]
[332817514,1721548247370,-500.0,0.00013698,2]
[332817515,1721548247380,-250.00000001,0.00013698,2]
[332817516,1721548247389,-500.0,0.00013698,2]
[332817517,1721548247398,-500.0,0.00013698,2]
[332817518,1721548247408,-500.0,0.00013698,2]
[332817519,1721548247417,-500.0,0.00013698,2]
[332817520,1721548247427,-500.0,0.00013698,2]
[332817521,1721548247438,-500.0,0.00013698,2]
[332817522,1721548247448,-500.0,0.00013698,2]
[332817523,1721548247461,-500.0,0.00013698,2]
[332817524,1721548247474,-484.72430425,0.00013698,2]
[332817525,1721548247483,-500.0,0.00013698,2]
[332817526,1721548247492,-500.0,0.00013698,2]
[332817527,1721548247501,-500.0,0.00013698,2]
[332817528,1721548247511,-500.0,0.00013698,2]
[332817529,1721548247520,-500.0,0.00013698,2]
[332817530,1721548247530,-384.63983438,0.00013698,2]
[332817531,1721548247539,-502.58801939,0.00013698,2]
[332817532,1721548247549,-424.52037373,0.00013698,2]
[332817533,1721548247560,-500.0,0.00013698,2]
[332817534,1721548247571,-500.0,0.00013698,2]
[332817535,1721548247581,-500.0,0.00013698,2]
[332817536,1721548247591,-500.0,0.00013698,2]
[332817537,1721548247601,-500.0,0.00013698,2]
[332817538,1721548247611,-500.0,0.00013698,2]
[332817539,1721548247620,-839.76376005,0.00013698,2]
[332817540,1721548247630,-839.76376005,0.00013698,2]
[332817541,1721548247640,-839.76376005,0.00013698,2]
[332817542,1721548247650,-500.0,0.00013698,2]
[332817543,1721548247660,-502.0283174,0.00013698,2]
[332817544,1721548247670,-522.19846751,0.00013698,2]
[332817545,1721548247680,-500.0,0.00013698,2]
[332817546,1721548247690,-259.96589553,0.00013698,2]
[332817547,1721548247700,-419.47464472,0.00013698,2]
[332817548,1721548247709,-500.0,0.00013698,2]
[332817549,1721548247719,-635.20312292,0.00013698,2]
[332817550,1721548247729,-500.0,0.00013698,2]
[332817551,1721548247739,-1699.0,0.00013698,2]
[332817552,1721548247749,-500.0,0.00013698,2]
[332817553,1721548247758,-500.0,0.00013698,2]
[332817554,1721548247769,-500.0,0.00013698,2]
[332817555,1721548247779,-259.81166719,0.00013698,2]
[332817556,1721548247791,-500.0,0.00013698,2]
[332817557,1721548247801,-257.77649434,0.00013698,2]
[332817558,1721548247811,-500.0,0.00013698,2]
[332817559,1721548247820,-500.81339104,0.00013698,2]
[332817560,1721548247830,-500.0,0.00013698,2]
[332817561,1721548247840,-500.0,0.00013698,2]
[332817562,1721548247849,-500.0,0.00013698,2]
[332817563,1721548247859,-500.0,0.00013698,2]
[332817564,1721548247869,-525.86400659,0.00013698,2]
[332817565,1721548247879,-575.17592722,0.00013698,2]
[332817566,1721548247888,-500.0,0.00013698,2]
[332817567,1721548247898,-500.0,0.00013698,2]
[332817568,1721548247910,-500.0,0.00013698,2]
[332817569,1721548247921,-1145.72,0.00013698,2]
[332817570,1721548247933,-500.0,0.00013698,2]
[332817571,1721548247942,-500.0,0.00013698,2]
[332817572,1721548247951,-500.0,0.00013698,2]
[332817573,1721548247961,-500.0,0.00013698,2]
[332817574,1721548247972,-500.0,0.00013698,2]
[332817575,1721548247984,-500.0,0.00013698,2]
[332817576,1721548247995,-500.0,0.00013698,2]
[332817577,1721548248006,-500.0,0.00013698,2]
[332817578,1721548248016,-383.27071003,0.00013698,2]
[332817579,1721548248026,-500.0,0.00013698,2]
[332817580,1721548248037,-500.0,0.00013698,2]
[332817581,1721548248047,-500.0,0.00013698,2]
[332817582,1721548248058,-500.0,0.00013698,2]
[332817583,1721548248069,-500.0,0.00013698,2]
[332817584,1721548248080,-500.0,0.00013698,2]
[332817585,1721548248090,-500.0,0.00013698,2]
[332817586,1721548248100,-500.0,0.00013698,2]
[332817587,1721548248110,-500.0,0.00013698,2]
[332817588,1721548248120,-500.0,0.00013698,2]
[332817589,1721548248129,-500.0,0.00013698,2]
[332817590,1721548248139,-500.0,0.00013698,2]
[332817591,1721548248149,-500.0,0.00013698,2]
[332817592,1721548248159,-500.0,0.00013698,2]
[332817593,1721548248168,-500.0,0.00013698,2]
[332817594,1721548248179,-500.0,0.00013698,2]
[332817595,1721548248190,-500.0,0.00013698,2]
[332817596,1721548248200,-500.0,0.00013698,2]
[332817597,1721548248210,-500.0,0.00013698,2]
[332817598,1721548248220,-453.52627597,0.00013698,2]
[332817599,1721548248234,-953.2,0.00013698,2]
[332817600,1721548248243,-500.0,0.00013698,2]
[332817601,1721548248254,-500.0,0.00013698,2]
[332817602,1721548248263,-500.0,0.00013698,2]
[332817603,1721548248273,-500.0,0.00013698,2]
[332817604,1721548248282,-500.0,0.00013698,2]
[332817605,1721548248292,-604.06,0.00013698,2]
[332817606,1721548248301,-514.0,0.00013698,2]
[332817607,1721548248311,-518.19840967,0.00013698,2]
[332817608,1721548248320,-513.23170006,0.00013698,2]
[332817609,1721548248330,-500.0,0.00013698,2]
[332817610,1721548248340,-500.0,0.00013698,2]
[332817611,1721548248349,-592.01,0.00013698,2]
[332817612,1721548248359,-500.0,0.00013698,2]
[332817613,1721548248368,-500.0,0.00013698,2]
[332817614,1721548248378,-508.74971259,0.00013698,2]
[332817615,1721548248387,-500.0,0.00013698,2]
[332817616,1721548248398,-500.0,0.00013698,2]
[332817617,1721548248408,-500.0,0.00013698,2]
[332817618,1721548248418,-500.0,0.00013698,2]
[332817619,1721548248427,-500.0,0.00013698,2]
[332817620,1721548248438,-500.0,0.00013698,2]
[332817621,1721548248447,-500.0,0.00013698,2]
[332817622,1721548248458,-500.0,0.00013698,2]
[332817623,1721548248468,-500.0,0.00013698,2]
[332817624,1721548248478,-500.0,0.00013698,2]
[332817625,1721548248487,-500.0,0.00013698,2]
[332817626,1721548248497,-506.96922315,0.00013698,2]
[332817627,1721548248507,-500.0,0.00013698,2]
[332817628,1721548248517,-500.0,0.00013698,2]
[332817629,1721548248527,-500.0,0.00013698,2]
[332817630,1721548248537,-16858.93,0.00013698,2]
[332817631,1721548248546,-16858.93,0.00013698,2]
[332817632,1721548248556,-500.0,0.00013698,2]
[332817633,1721548248565,-16858.93,0.00013698,2]
[332817634,1721548248575,-500.0,0.00013698,2]
[332817635,1721548248585,-16858.93,0.00013698,2]
[332817636,1721548248594,-16858.93,0.00013698,2]
[332817637,1721548248604,-500.0,0.00013698,2]
[332817638,1721548248613,-16858.93,0.00013698,2]
[332817639,1721548248623,-16858.93,0.00013698,2]
[332817640,1721548248634,-16858.93,0.00013698,2]
[332817641,1721548248644,-16858.93,0.00013698,2]
[332817642,1721548248654,-16858.93,0.00013698,2]
[332817643,1721548248664,-16858.93,0.00013698,2]
[332817644,1721548248673,-16858.93,0.00013698,2]
[332817645,1721548248684,-16858.93,0.00013698,2]
[332817646,1721548248694,-16858.93,0.00013698,2]
[332817647,1721548248704,-16858.93,0.00013698,2]
[332817648,1721548248714,-500.0,0.00013698,2]
[332817649,1721548248725,-16858.93,0.00013698,2]
[332817650,1721548248734,-16858.93,0.00013698,2]
[332817651,1721548248743,-16858.93,0.00013698,2]
[332817652,1721548248754,-16858.93,0.00013698,2]
[332817653,1721548248764,-16858.93,0.00013698,2]
[332817654,1721548248775,-16858.93,0.00013698,2]
[332817655,1721548248786,-16858.93,0.00013698,2]
[332817656,1721548248796,-16858.93,0.00013698,2]
[332817657,1721548248806,-16859.09171819,0.00013698,2]
[332817658,1721548248816,-500.0,0.00013698,2]
[332817659,1721548248826,-572.96,0.00013698,2]
[332817660,1721548248836,-500.0,0.00013698,2]
[332817661,1721548248846,-500.0,0.00013698,2]
[332817662,1721548248855,-518.4907421,0.00013698,2]
[332817663,1721548248865,-500.0,0.00013698,2]
[332817664,1721548248875,-503.22585213,0.00013698,2]
[332817665,1721548248886,-500.0,0.00013698,2]
[332817666,1721548248896,-835.37,0.00013698,2]
[332817667,1721548248906,-500.0,0.00013698,2]
[332817668,1721548248916,-779.45,0.00013698,2]
[332817669,1721548248927,-501.39067498,0.00013698,2]
[332817670,1721548248938,-500.0,0.00013698,2]
[332817671,1721548248948,-500.0,0.00013698,2]
[332817672,1721548248957,-370.30396725,0.00013698,2]
[332817673,1721548248967,-1066.97,0.00013698,2]
[332817674,1721548248978,-500.0,0.00013698,2]
[332817675,1721548248989,-500.0,0.00013698,2]
[332817676,1721548249000,-787.08,0.00013698,2]
[332817677,1721548249010,-296.0010958,0.00013698,2]
[332817678,1721548249021,-500.0,0.00013698,2]
[332817679,1721548249031,-2656.13,0.00013698,2]
[332817680,1721548249041,-505.69005528,0.00013698,2]
[332817681,1721548249053,-500.0,0.00013698,2]
[332817682,1721548249063,-500.0,0.00013698,2]
[332817683,1721548249073,-500.0,0.00013698,2]
[332817684,1721548249083,-185.12499059,0.00013698,2]
[332817685,1721548249093,-500.0,0.00013698,2]
[332817686,1721548249103,-500.0,0.00013698,2]
[332817687,1721548249114,-500.51950028,0.00013698,2]
[332817688,1721548249124,-500.0,0.00013698,2]
[332817689,1721548249136,-500.0,0.00013698,2]
[332817690,1721548249147,-500.0,0.00013698,2]
[332817691,1721548249158,-500.0,0.00013698,2]
[332817692,1721548249168,-500.0,0.00013698,2]
[332817693,1721548249178,-500.0,0.00013698,2]
[332817694,1721548249188,-500.0,0.00013698,2]
[332817695,1721548249198,-500.0,0.00013698,2]
[332817696,1721548249208,-500.0,0.00013698,2]
[332817697,1721548249218,-500.0,0.00013698,2]
[332817698,1721548249229,-503.79859764,0.00013698,2]
[332817699,1721548249241,-500.0,0.00013698,2]
[332817700,1721548249252,-500.0,0.00013698,2]
[332817701,1721548249262,-500.0,0.00013698,2]
[332817702,1721548249273,-500.0,0.00013698,2]
[332817703,1721548249284,-502.14615165,0.00013698,2]
[332817704,1721548249294,-500.0,0.00013698,2]
[332817705,1721548249304,-405.93328028,0.00013698,2]
[332817706,1721548249315,-500.0,0.00013698,2]
[332817707,1721548249324,-500.0,0.00013698,2]
[332817708,1721548249335,-802.43,0.00013698,2]
[332817709,1721548249345,-500.0,0.00013698,2]
[332817710,1721548249355,-560.87292994,0.00013698,2]
[332817711,1721548249366,-506.44277005,0.00013698,2]
[332817712,1721548249376,-500.0,0.00013698,2]
[332817713,1721548249386,-500.0,0.00013698,2]
[332817714,1721548249396,-500.0,0.00013698,2]
[332817715,1721548249408,-500.0,0.00013698,2]
[332817716,1721548249419,-500.0,0.00013698,2]
[332817717,1721548249429,-485.72514526,0.00013698,2]